[Event "Early-Titled-Tuesday-Blitz-October-17-2023"]
[Site "Chess.com"]
[Date "2023.10.17"]
[Round "2"]
[White "McCarthyStone"]
[Black "DeTimmerman"]
[Result "0-1"]
[WhiteElo "2374"]
[BlackElo "2704"]
[TimeControl "180+1"]
[EndTime "8:19:25 PDT"]
[Termination "DeTimmerman won on time"]

1. e4 {[%clk 0:03:00.9]} 1... e5 {[%clk 0:02:59.7]} 2. Nf3 {[%clk 0:03:01.5]}
2... Nc6 {[%clk 0:02:58.4]} 3. Nc3 {[%clk 0:03:00.1]} 3... Nf6 {[%clk
0:02:57.9]} 4. g3 {[%clk 0:03:00.6]} 4... d5 {[%clk 0:02:57.8]} 5. exd5 {[%clk
0:03:01.5]} 5... Nxd5 {[%clk 0:02:58.7]} 6. Bg2 {[%clk 0:03:02.2]} 6... Nxc3
{[%clk 0:02:58.7]} 7. bxc3 {[%clk 0:03:03.1]} 7... Bd6 {[%clk 0:02:59.4]} 8. O-O
{[%clk 0:03:03.4]} 8... O-O {[%clk 0:03:00.3]} 9. Rb1 {[%clk 0:03:03.5]} 9...
Rb8 {[%clk 0:03:00.2]} 10. Re1 {[%clk 0:02:59.2]} 10... Re8 {[%clk 0:02:58.6]}
11. d4 {[%clk 0:02:59.1]} 11... e4 {[%clk 0:02:44.3]} 12. Ng5 {[%clk 0:02:56.1]}
12... f5 {[%clk 0:02:25]} 13. Qh5 {[%clk 0:02:16.2]} 13... h6 {[%clk 0:02:24.7]}
14. Nf7 {[%clk 0:02:08.6]} 14... Qe7 {[%clk 0:02:21.4]} 15. Nxh6+ {[%clk
0:01:41.2]} 15... gxh6 {[%clk 0:02:16.5]} 16. Bxh6 {[%clk 0:01:16.2]} 16... Qf7
{[%clk 0:01:57.3]} 17. Qg5+ {[%clk 0:01:02.3]} 17... Kh7 {[%clk 0:01:57]} 18.
Qh4 {[%clk 0:00:46]} 18... Be7 {[%clk 0:01:42.8]} 19. Bg5+ {[%clk 0:00:39.5]}
19... Kg8 {[%clk 0:01:40.1]} 20. f3 {[%clk 0:00:39.5]} 20... Bxg5 {[%clk
0:01:24.8]} 21. Qxg5+ {[%clk 0:00:40.4]} 21... Qg7 {[%clk 0:01:25.7]} 22. Qh5
{[%clk 0:00:38.1]} 22... Bd7 {[%clk 0:01:23.4]} 23. fxe4 {[%clk 0:00:36.6]}
23... fxe4 {[%clk 0:01:24.3]} 24. Bxe4 {[%clk 0:00:13.9]} 24... Re7 {[%clk
0:01:23.2]} 25. Bd5+ {[%clk 0:00:12.6]} 25... Rf7 {[%clk 0:01:15.9]} 26. Rf1
{[%clk 0:00:06.7]} 26... Rf8 {[%clk 0:01:12]} 27. Rxf7 {[%clk 0:00:05.9]} 27...
Rxf7 {[%clk 0:01:12.9]} 28. Rf1 {[%clk 0:00:06]} 28... Nd8 {[%clk 0:01:12.7]}
29. Rxf7 {[%clk 0:00:03.7]} 29... Nxf7 {[%clk 0:01:13.6]} 30. Qe2 {[%clk
0:00:01.9]} 30... Kf8 {[%clk 0:00:50.5]} 31. Bc4 {[%clk 0:00:02.3]} 31... Qf6
{[%clk 0:00:48.7]} 32. Kg2 {[%clk 0:00:01.9]} 32... Bc6+ {[%clk 0:00:48.4]} 33.
d5 {[%clk 0:00:02.5]} 33... Bd7 {[%clk 0:00:48.7]} 34. Qe3 {[%clk 0:00:02.2]}
34... b6 {[%clk 0:00:46.9]} 35. h4 {[%clk 0:00:01.8]} 35... Ne5 {[%clk
0:00:46.3]} 36. Be2 {[%clk 0:00:01.6]} 36... Bf5 {[%clk 0:00:44.7]} 37. c4
{[%clk 0:00:02]} 37... Bxc2 {[%clk 0:00:44.1]} 38. c5 {[%clk 0:00:02.6]} 38...
Qf5 {[%clk 0:00:41.5]} 39. d6 {[%clk 0:00:02.6]} 39... Be4+ {[%clk 0:00:41]} 40.
Kg1 {[%clk 0:00:03]} 40... cxd6 {[%clk 0:00:37.7]} 41. cxd6 {[%clk 0:00:03.9]}
41... Bc6 {[%clk 0:00:34.4]} 42. h5 {[%clk 0:00:03.2]} 42... Qb1+ {[%clk
0:00:28.5]} 43. Bf1 {[%clk 0:00:01.6]} 43... Nf3+ {[%clk 0:00:17]} 0-1

[Event "Early-Titled-Tuesday-Blitz-October-17-2023"]
[Site "Chess.com"]
[Date "2023.10.17"]
[Round "2"]
[White "Emp3rador"]
[Black "carokannlover213"]
[Result "0-1"]
[WhiteElo "2542"]
[BlackElo "2732"]
[TimeControl "180+1"]
[EndTime "8:19:28 PDT"]
[Termination "carokannlover213 won by checkmate"]

1. e4 {[%clk 0:03:00.9]} 1... c5 {[%clk 0:02:58.4]} 2. Nf3 {[%clk 0:02:59.2]}
2... d6 {[%clk 0:02:58.8]} 3. Bb5+ {[%clk 0:02:57.2]} 3... Nc6 {[%clk 0:02:58]}
4. d4 {[%clk 0:02:56.9]} 4... cxd4 {[%clk 0:02:57.2]} 5. Qxd4 {[%clk 0:02:57.8]}
5... Bd7 {[%clk 0:02:53]} 6. Bxc6 {[%clk 0:02:57.7]} 6... Bxc6 {[%clk
0:02:53.9]} 7. Nc3 {[%clk 0:02:57.8]} 7... Nf6 {[%clk 0:02:53.7]} 8. Bg5 {[%clk
0:02:57.1]} 8... e6 {[%clk 0:02:53.9]} 9. O-O-O {[%clk 0:02:55.8]} 9... Be7
{[%clk 0:02:54.2]} 10. Bxf6 {[%clk 0:02:52.4]} 10... Bxf6 {[%clk 0:02:53.7]} 11.
Qe3 {[%clk 0:02:20.4]} 11... Qa5 {[%clk 0:02:48.4]} 12. Nd4 {[%clk 0:01:49]}
12... O-O {[%clk 0:02:31.8]} 13. h4 {[%clk 0:01:20.9]} 13... Bd7 {[%clk
0:02:21.5]} 14. g4 {[%clk 0:01:10.4]} 14... b5 {[%clk 0:02:18.6]} 15. Kb1 {[%clk
0:00:41.2]} 15... b4 {[%clk 0:02:06.6]} 16. Nce2 {[%clk 0:00:39.4]} 16... Qb6
{[%clk 0:02:01.5]} 17. g5 {[%clk 0:00:36.8]} 17... Be7 {[%clk 0:01:52.9]} 18.
Rd2 {[%clk 0:00:17.3]} 18... a5 {[%clk 0:01:43.4]} 19. Nf5 {[%clk 0:00:15.6]}
19... Qd8 {[%clk 0:01:39.4]} 20. Nxe7+ {[%clk 0:00:15.9]} 20... Qxe7 {[%clk
0:01:39.2]} 21. Rhd1 {[%clk 0:00:16.6]} 21... e5 {[%clk 0:01:31.3]} 22. Rxd6
{[%clk 0:00:14.2]} 22... Be6 {[%clk 0:01:31.9]} 23. f4 {[%clk 0:00:12.8]} 23...
exf4 {[%clk 0:00:52.4]} 24. Nxf4 {[%clk 0:00:12.8]} 24... Bg4 {[%clk 0:00:52.9]}
25. R1d2 {[%clk 0:00:11.3]} 25... a4 {[%clk 0:00:46.7]} 26. e5 {[%clk
0:00:11.1]} 26... Qb7 {[%clk 0:00:39.4]} 27. Nd5 {[%clk 0:00:09.2]} 27... b3
{[%clk 0:00:34.9]} 28. a3 {[%clk 0:00:07.3]} 28... bxc2+ {[%clk 0:00:34.3]} 29.
Kc1 {[%clk 0:00:06.9]} 29... Qb5 {[%clk 0:00:26.9]} 30. Rf2 {[%clk 0:00:05.8]}
30... Kh8 {[%clk 0:00:22.6]} 31. h5 {[%clk 0:00:03.5]} 31... Qc4 {[%clk
0:00:17.3]} 32. h6 {[%clk 0:00:03.4]} 32... Qa2 {[%clk 0:00:17.3]} 33. Kxc2
{[%clk 0:00:03.2]} 33... Rac8+ {[%clk 0:00:15.7]} 34. Nc3 {[%clk 0:00:03.3]}
34... Qb3+ {[%clk 0:00:12.1]} 35. Kb1 {[%clk 0:00:03.5]} 35... Bh5 {[%clk
0:00:03.8]} 36. hxg7+ {[%clk 0:00:04.4]} 36... Kxg7 {[%clk 0:00:04.2]} 37. Qf4
{[%clk 0:00:03.8]} 37... Bg6+ {[%clk 0:00:04.6]} 38. Ka1 {[%clk 0:00:03.6]}
38... Rxc3 {[%clk 0:00:04.9]} 39. Qf6+ {[%clk 0:00:03.9]} 39... Kg8 {[%clk
0:00:04.8]} 40. bxc3 {[%clk 0:00:03.5]} 40... Qxa3+ {[%clk 0:00:04.5]} 41. Ra2
{[%clk 0:00:02.6]} 41... Qxc3+ {[%clk 0:00:03.6]} 42. Rb2 {[%clk 0:00:02.2]}
42... Qa3+ {[%clk 0:00:04.2]} 43. Ra2 {[%clk 0:00:02.4]} 43... Qc1# {[%clk
0:00:05.1]} 0-1

[Event "Early-Titled-Tuesday-Blitz-October-17-2023"]
[Site "Chess.com"]
[Date "2023.10.17"]
[Round "2"]
[White "Hasangatin_Ramil"]
[Black "m_ezat"]
[Result "1-0"]
[WhiteElo "2724"]
[BlackElo "2535"]
[TimeControl "180+1"]
[EndTime "8:19:29 PDT"]
[Termination "Hasangatin_Ramil won by resignation"]

1. e4 {[%clk 0:03:00.9]} 1... e5 {[%clk 0:02:59.8]} 2. Nf3 {[%clk 0:02:59.1]}
2... Nc6 {[%clk 0:02:59.8]} 3. Bb5 {[%clk 0:02:58.2]} 3... Nge7 {[%clk
0:02:58.9]} 4. Nc3 {[%clk 0:02:57.2]} 4... d6 {[%clk 0:02:57]} 5. d4 {[%clk
0:02:57.1]} 5... exd4 {[%clk 0:02:56.3]} 6. Nxd4 {[%clk 0:02:58]} 6... Bd7
{[%clk 0:02:56.6]} 7. Be3 {[%clk 0:02:57.9]} 7... g6 {[%clk 0:02:55.6]} 8. Qd2
{[%clk 0:02:52.8]} 8... Bg7 {[%clk 0:02:55.3]} 9. O-O {[%clk 0:02:51.2]} 9...
O-O {[%clk 0:02:54.2]} 10. Nxc6 {[%clk 0:02:49.9]} 10... Bxc6 {[%clk 0:02:45.7]}
11. Bxc6 {[%clk 0:02:47.4]} 11... Nxc6 {[%clk 0:02:31.4]} 12. Bh6 {[%clk
0:02:47.3]} 12... Re8 {[%clk 0:02:17.1]} 13. Bxg7 {[%clk 0:02:44.7]} 13... Kxg7
{[%clk 0:02:17.7]} 14. Rae1 {[%clk 0:02:44.3]} 14... f6 {[%clk 0:02:09.1]} 15.
Nd5 {[%clk 0:02:42.8]} 15... Ne7 {[%clk 0:02:07.8]} 16. Nf4 {[%clk 0:02:39.4]}
16... Qd7 {[%clk 0:02:06.7]} 17. Qb4 {[%clk 0:02:37.1]} 17... Nc6 {[%clk
0:02:01.4]} 18. Qb3 {[%clk 0:02:28.9]} 18... Re5 {[%clk 0:01:56]} 19. Re3 {[%clk
0:02:26]} 19... Rae8 {[%clk 0:01:54.1]} 20. Rfe1 {[%clk 0:02:25.4]} 20... b6
{[%clk 0:01:21.7]} 21. Nd3 {[%clk 0:02:20.7]} 21... R5e7 {[%clk 0:01:21]} 22.
Qc3 {[%clk 0:02:10.2]} 22... Ne5 {[%clk 0:01:16.8]} 23. Nf4 {[%clk 0:02:08]}
23... c6 {[%clk 0:01:11.8]} 24. h3 {[%clk 0:02:04.9]} 24... Nf7 {[%clk
0:00:55.2]} 25. b4 {[%clk 0:01:59.9]} 25... Ng5 {[%clk 0:00:54.8]} 26. f3 {[%clk
0:01:57]} 26... Qc7 {[%clk 0:00:49.8]} 27. h4 {[%clk 0:01:43.4]} 27... Nf7
{[%clk 0:00:44]} 28. a4 {[%clk 0:01:25.6]} 28... d5 {[%clk 0:00:43.4]} 29. exd5
{[%clk 0:01:25.1]} 29... Rxe3 {[%clk 0:00:39.7]} 30. Rxe3 {[%clk 0:01:24.7]}
30... Rxe3 {[%clk 0:00:39.1]} 31. Qxe3 {[%clk 0:01:24.9]} 31... cxd5 {[%clk
0:00:39.3]} 32. c3 {[%clk 0:00:52.5]} 32... Qd7 {[%clk 0:00:24.2]} 33. Qd4
{[%clk 0:00:49.8]} 33... Qxa4 {[%clk 0:00:10]} 34. Nxd5 {[%clk 0:00:45.7]} 34...
Qc6 {[%clk 0:00:07.3]} 35. c4 {[%clk 0:00:43.6]} 35... Qd6 {[%clk 0:00:07.4]}
36. c5 {[%clk 0:00:43.2]} 36... bxc5 {[%clk 0:00:07.7]} 37. bxc5 {[%clk
0:00:44.1]} 37... Qe5 {[%clk 0:00:08.1]} 38. Qd2 {[%clk 0:00:33.1]} 38... Nd8
{[%clk 0:00:08.1]} 39. Kh1 {[%clk 0:00:25.3]} 39... Nc6 {[%clk 0:00:07.1]} 40.
Nf4 {[%clk 0:00:23.3]} 40... Qa1+ {[%clk 0:00:06.8]} 41. Kh2 {[%clk 0:00:23.1]}
41... Qe5 {[%clk 0:00:06.8]} 42. g3 {[%clk 0:00:23.5]} 42... Nd4 {[%clk
0:00:06.3]} 43. Qxd4 {[%clk 0:00:22.3]} 43... Qxd4 {[%clk 0:00:06.3]} 44. Ne6+
{[%clk 0:00:22.6]} 44... Kf7 {[%clk 0:00:07]} 45. Nxd4 {[%clk 0:00:23.5]} 45...
Ke7 {[%clk 0:00:07.4]} 46. Nc6+ {[%clk 0:00:22]} 46... Kd7 {[%clk 0:00:07.2]}
47. Nxa7 {[%clk 0:00:22.9]} 1-0

[Event "Early-Titled-Tuesday-Blitz-October-17-2023"]
[Site "Chess.com"]
[Date "2023.10.17"]
[Round "2"]
[White "Rutricks"]
[Black "venturov"]
[Result "1-0"]
[WhiteElo "2661"]
[BlackElo "2433"]
[TimeControl "180+1"]
[EndTime "8:19:33 PDT"]
[Termination "Rutricks won by checkmate"]

1. b3 {[%clk 0:02:54.6]} 1... Nf6 {[%clk 0:02:57.5]} 2. Bb2 {[%clk 0:02:55]}
2... e6 {[%clk 0:02:57.5]} 3. Nf3 {[%clk 0:02:55.6]} 3... c5 {[%clk 0:02:57.8]}
4. g3 {[%clk 0:02:55.9]} 4... b6 {[%clk 0:02:57.9]} 5. Bg2 {[%clk 0:02:56.6]}
5... Bb7 {[%clk 0:02:58.5]} 6. O-O {[%clk 0:02:57.4]} 6... Be7 {[%clk
0:02:58.9]} 7. c4 {[%clk 0:02:56.8]} 7... O-O {[%clk 0:02:59.1]} 8. Nc3 {[%clk
0:02:57.5]} 8... d6 {[%clk 0:02:59]} 9. Rc1 {[%clk 0:02:57.1]} 9... a6 {[%clk
0:02:58.3]} 10. d4 {[%clk 0:02:57.4]} 10... cxd4 {[%clk 0:02:59.2]} 11. Qxd4
{[%clk 0:02:57.2]} 11... Nbd7 {[%clk 0:02:57.4]} 12. Rfd1 {[%clk 0:02:56.7]}
12... Qc7 {[%clk 0:02:57.3]} 13. h4 {[%clk 0:02:54.5]} 13... Rfd8 {[%clk
0:02:54.6]} 14. Qe3 {[%clk 0:02:52.9]} 14... Rac8 {[%clk 0:02:51.1]} 15. Na4
{[%clk 0:02:51.5]} 15... Bc6 {[%clk 0:02:45.7]} 16. Nc3 {[%clk 0:02:51.2]} 16...
Qb8 {[%clk 0:02:42.6]} 17. a4 {[%clk 0:02:51.6]} 17... d5 {[%clk 0:02:35.2]} 18.
Nd4 {[%clk 0:02:50.7]} 18... Bc5 {[%clk 0:02:23.3]} 19. cxd5 {[%clk 0:02:22.7]}
19... Bxd5 {[%clk 0:02:20]} 20. Nxd5 {[%clk 0:02:22.6]} 20... Nxd5 {[%clk
0:02:16]} 21. Bxd5 {[%clk 0:01:59.1]} 21... exd5 {[%clk 0:02:16.9]} 22. Qf3
{[%clk 0:01:59.8]} 22... Ne5 {[%clk 0:00:37.6]} 23. Qf5 {[%clk 0:01:58]} 23...
Ng6 {[%clk 0:00:16.3]} 24. h5 {[%clk 0:01:42.6]} 24... Ne7 {[%clk 0:00:16]} 25.
Qg4 {[%clk 0:01:43.4]} 25... h6 {[%clk 0:00:15.8]} 26. b4 {[%clk 0:01:43.8]}
26... Bxd4 {[%clk 0:00:15.6]} 27. Qxd4 {[%clk 0:01:42]} 27... f6 {[%clk
0:00:15.7]} 28. Qe3 {[%clk 0:01:38.8]} 28... Kf7 {[%clk 0:00:15.5]} 29. Bd4
{[%clk 0:01:35.9]} 29... Rxc1 {[%clk 0:00:14.4]} 30. Rxc1 {[%clk 0:01:34.2]}
30... Rc8 {[%clk 0:00:15]} 31. Rxc8 {[%clk 0:01:26.5]} 31... Qxc8 {[%clk
0:00:15.9]} 32. Bxb6 {[%clk 0:01:22.9]} 32... Qc2 {[%clk 0:00:12]} 33. Bc5
{[%clk 0:01:11.1]} 33... Nf5 {[%clk 0:00:11.7]} 34. Qf3 {[%clk 0:01:10.9]} 34...
Ke6 {[%clk 0:00:09.3]} 35. g4 {[%clk 0:01:04.4]} 35... Nd6 {[%clk 0:00:09.4]}
36. Qe3+ {[%clk 0:01:01.4]} 36... Kd7 {[%clk 0:00:07.7]} 37. Bxd6 {[%clk
0:00:57.7]} 37... Kxd6 {[%clk 0:00:08.6]} 38. Qb6+ {[%clk 0:00:58.2]} 38... Ke5
{[%clk 0:00:07.8]} 39. Qxa6 {[%clk 0:00:54.2]} 39... Qb1+ {[%clk 0:00:08.1]} 40.
Kg2 {[%clk 0:00:54.5]} 40... Qxb4 {[%clk 0:00:09]} 41. f3 {[%clk 0:00:50.2]}
41... Qb2 {[%clk 0:00:03.1]} 42. Qd3 {[%clk 0:00:44.1]} 42... Qa2 {[%clk
0:00:03.1]} 43. Qc3+ {[%clk 0:00:40]} 43... Kd6 {[%clk 0:00:02.5]} 44. Qb4+
{[%clk 0:00:39.3]} 44... Ke5 {[%clk 0:00:02.8]} 45. Kf2 {[%clk 0:00:40]} 45...
d4 {[%clk 0:00:02.6]} 46. Qc5+ {[%clk 0:00:38.5]} 46... Ke6 {[%clk 0:00:03.2]}
47. Qxd4 {[%clk 0:00:38.5]} 47... f5 {[%clk 0:00:03.5]} 48. Qxg7 {[%clk
0:00:32.3]} 48... fxg4 {[%clk 0:00:03.4]} 49. Qg6+ {[%clk 0:00:31.7]} 49... Ke7
{[%clk 0:00:03.5]} 50. Qg7+ {[%clk 0:00:32]} 50... Ke8 {[%clk 0:00:03.7]} 51.
Qxg4 {[%clk 0:00:30.1]} 51... Qb2 {[%clk 0:00:02.4]} 52. Qg6+ {[%clk 0:00:29.4]}
52... Ke7 {[%clk 0:00:02.5]} 53. Qxh6 {[%clk 0:00:30.1]} 53... Qd4+ {[%clk
0:00:02.3]} 54. Qe3+ {[%clk 0:00:31]} 54... Qxe3+ {[%clk 0:00:02.4]} 55. Kxe3
{[%clk 0:00:31.9]} 55... Kf6 {[%clk 0:00:02.7]} 56. a5 {[%clk 0:00:32.3]} 56...
Kg5 {[%clk 0:00:03.6]} 57. a6 {[%clk 0:00:33.2]} 57... Kxh5 {[%clk 0:00:04.4]}
58. a7 {[%clk 0:00:33.9]} 58... Kh4 {[%clk 0:00:05.3]} 59. a8=Q {[%clk 0:00:34]}
59... Kg3 {[%clk 0:00:06.2]} 60. Qg8+ {[%clk 0:00:34.1]} 60... Kh2 {[%clk
0:00:06.7]} 61. Kf2 {[%clk 0:00:34.2]} 61... Kh1 {[%clk 0:00:07.2]} 62. Qg1#
{[%clk 0:00:34.2]} 1-0

[Event "Early-Titled-Tuesday-Blitz-October-17-2023"]
[Site "Chess.com"]
[Date "2023.10.17"]
[Round "2"]
[White "salomez"]
[Black "Lady_Nika"]
[Result "1-0"]
[WhiteElo "2327"]
[BlackElo "2505"]
[TimeControl "180+1"]
[EndTime "8:19:33 PDT"]
[Termination "salomez won by resignation"]

1. e4 {[%clk 0:03:00.9]} 1... c5 {[%clk 0:02:59.5]} 2. Nf3 {[%clk 0:02:59.9]}
2... e6 {[%clk 0:02:59.2]} 3. g3 {[%clk 0:02:59.6]} 3... a6 {[%clk 0:02:59.6]}
4. Bg2 {[%clk 0:03:00.1]} 4... Nc6 {[%clk 0:02:59.5]} 5. O-O {[%clk 0:02:59.3]}
5... Nf6 {[%clk 0:02:58.5]} 6. Re1 {[%clk 0:02:55.6]} 6... Be7 {[%clk
0:02:57.8]} 7. c3 {[%clk 0:02:55.9]} 7... d5 {[%clk 0:02:56.5]} 8. e5 {[%clk
0:02:55.6]} 8... Nd7 {[%clk 0:02:56.4]} 9. d4 {[%clk 0:02:56]} 9... b5 {[%clk
0:02:56.5]} 10. Nbd2 {[%clk 0:02:54]} 10... Bb7 {[%clk 0:02:56.6]} 11. Nf1
{[%clk 0:02:54.2]} 11... Qb6 {[%clk 0:02:56.7]} 12. h4 {[%clk 0:02:51.3]} 12...
h6 {[%clk 0:02:54.4]} 13. a3 {[%clk 0:02:50.6]} 13... cxd4 {[%clk 0:02:52.3]}
14. cxd4 {[%clk 0:02:50.2]} 14... Na5 {[%clk 0:02:52.5]} 15. N1h2 {[%clk
0:02:41.4]} 15... O-O-O {[%clk 0:02:52]} 16. b3 {[%clk 0:02:33.8]} 16... Kb8
{[%clk 0:02:51.8]} 17. Bd2 {[%clk 0:02:33.2]} 17... Rc8 {[%clk 0:02:50.6]} 18.
Re2 {[%clk 0:02:15.5]} 18... Rc7 {[%clk 0:02:43.2]} 19. Re3 {[%clk 0:02:14.4]}
19... Rhc8 {[%clk 0:02:42.6]} 20. Qe1 {[%clk 0:02:14.5]} 20... Nc6 {[%clk
0:02:41.6]} 21. Rd3 {[%clk 0:02:06.8]} 21... a5 {[%clk 0:02:33.2]} 22. Ng4
{[%clk 0:02:00.6]} 22... b4 {[%clk 0:02:27.9]} 23. a4 {[%clk 0:01:56.2]} 23...
Ba6 {[%clk 0:02:25.5]} 24. Re3 {[%clk 0:01:45.9]} 24... Nxd4 {[%clk 0:02:23]}
25. Nxd4 {[%clk 0:01:17.6]} 25... Qxd4 {[%clk 0:02:22.2]} 26. Nh2 {[%clk
0:00:51.9]} 26... Rc2 {[%clk 0:02:19.2]} 27. Nf3 {[%clk 0:00:50.4]} 27... Qc5
{[%clk 0:02:11.4]} 28. h5 {[%clk 0:00:29.9]} 28... d4 {[%clk 0:02:10.5]} 29. Re4
{[%clk 0:00:29.1]} 29... d3 {[%clk 0:02:07.3]} 30. Rg4 {[%clk 0:00:28.4]} 30...
g5 {[%clk 0:01:53.2]} 31. hxg6 {[%clk 0:00:27.7]} 31... h5 {[%clk 0:01:53.3]}
32. Rf4 {[%clk 0:00:20.7]} 32... fxg6 {[%clk 0:01:51.9]} 33. Rf7 {[%clk
0:00:20.9]} 33... Rf8 {[%clk 0:01:41.2]} 34. Rg7 {[%clk 0:00:18.5]} 34... Bb7
{[%clk 0:01:31.8]} 35. Be3 {[%clk 0:00:09.1]} 35... Qc7 {[%clk 0:01:25.4]} 36.
Nd4 {[%clk 0:00:06.1]} 36... Bxg2 {[%clk 0:01:25.1]} 37. Kxg2 {[%clk 0:00:05.4]}
37... Nxe5 {[%clk 0:01:17]} 38. Nxc2 {[%clk 0:00:04.2]} 38... Qb7+ {[%clk
0:01:17.2]} 39. Kh3 {[%clk 0:00:02.7]} 39... dxc2 {[%clk 0:01:16.5]} 40. Rc1
{[%clk 0:00:02.1]} 40... Bf6 {[%clk 0:01:06.4]} 41. Rxb7+ {[%clk 0:00:01.6]}
41... Kxb7 {[%clk 0:01:06.6]} 42. Bf4 {[%clk 0:00:02.5]} 42... Ng4 {[%clk
0:01:01.6]} 43. Qe4+ {[%clk 0:00:03.4]} 43... Ka7 {[%clk 0:00:59.7]} 44. Rxc2
{[%clk 0:00:04.3]} 44... Bc3 {[%clk 0:00:55.7]} 45. Be3+ {[%clk 0:00:05.2]}
45... Nxe3 {[%clk 0:00:53.7]} 46. Qxe3+ {[%clk 0:00:05.5]} 46... Kb8 {[%clk
0:00:54]} 47. Qxe6 {[%clk 0:00:06.4]} 47... Rf6 {[%clk 0:00:53.8]} 48. Qe8+
{[%clk 0:00:06]} 48... Kb7 {[%clk 0:00:53.2]} 49. Qb5+ {[%clk 0:00:06.4]} 49...
Rb6 {[%clk 0:00:50]} 50. Qd7+ {[%clk 0:00:05.8]} 50... Ka6 {[%clk 0:00:49.1]}
51. Qc8+ {[%clk 0:00:06.1]} 51... Ka7 {[%clk 0:00:48.8]} 52. Rxc3 {[%clk
0:00:06.4]} 52... bxc3 {[%clk 0:00:49]} 53. Qxc3 {[%clk 0:00:07.3]} 53... g5
{[%clk 0:00:47]} 54. Qxa5+ {[%clk 0:00:07.2]} 54... Kb7 {[%clk 0:00:46.5]} 55.
Qxb6+ {[%clk 0:00:07.4]} 55... Kxb6 {[%clk 0:00:46.6]} 56. b4 {[%clk 0:00:08.3]}
1-0

[Event "Early-Titled-Tuesday-Blitz-October-17-2023"]
[Site "Chess.com"]
[Date "2023.10.17"]
[Round "2"]
[White "AradNazari"]
[Black "ChessRespected"]
[Result "1/2-1/2"]
[WhiteElo "2855"]
[BlackElo "2596"]
[TimeControl "180+1"]
[EndTime "8:19:34 PDT"]
[Termination "Game drawn - insufficient material"]

1. e4 {[%clk 0:03:00.9]} 1... e5 {[%clk 0:02:59.5]} 2. f4 {[%clk 0:03:00.3]}
2... Bc5 {[%clk 0:02:58.7]} 3. Nf3 {[%clk 0:02:59.6]} 3... d6 {[%clk 0:02:58.8]}
4. c3 {[%clk 0:02:53.5]} 4... Bb6 {[%clk 0:02:57.7]} 5. Na3 {[%clk 0:02:46.7]}
5... Nf6 {[%clk 0:02:56.4]} 6. Qc2 {[%clk 0:02:20.2]} 6... O-O {[%clk 0:02:51]}
7. Nc4 {[%clk 0:02:16.1]} 7... exf4 {[%clk 0:02:44.6]} 8. Nxb6 {[%clk
0:02:11.2]} 8... axb6 {[%clk 0:02:43.7]} 9. Be2 {[%clk 0:02:05.6]} 9... Re8
{[%clk 0:02:42.7]} 10. d3 {[%clk 0:02:05.9]} 10... d5 {[%clk 0:02:38.5]} 11. e5
{[%clk 0:01:56.7]} 11... Ng4 {[%clk 0:02:38.3]} 12. Bxf4 {[%clk 0:01:51.6]}
12... f6 {[%clk 0:02:18.1]} 13. d4 {[%clk 0:01:46]} 13... fxe5 {[%clk 0:02:00]}
14. Nxe5 {[%clk 0:01:44.7]} 14... Nc6 {[%clk 0:01:53.3]} 15. Bxg4 {[%clk
0:01:29.9]} 15... Bxg4 {[%clk 0:01:47]} 16. O-O {[%clk 0:01:28.1]} 16... Bh5
{[%clk 0:01:35.1]} 17. Qf5 {[%clk 0:01:13.6]} 17... Nxe5 {[%clk 0:01:34.4]} 18.
Qxh5 {[%clk 0:01:09.1]} 18... Ng6 {[%clk 0:01:32.1]} 19. Bg3 {[%clk 0:01:06.1]}
19... Qd7 {[%clk 0:01:31.1]} 20. Rf5 {[%clk 0:01:02.3]} 20... c6 {[%clk
0:01:30.5]} 21. h3 {[%clk 0:00:55.7]} 21... Rf8 {[%clk 0:01:24.9]} 22. Rxf8+
{[%clk 0:00:38.6]} 22... Rxf8 {[%clk 0:01:25.8]} 23. Qe2 {[%clk 0:00:37]} 23...
b5 {[%clk 0:01:22.9]} 24. a4 {[%clk 0:00:37]} 24... bxa4 {[%clk 0:01:21.3]} 25.
Rxa4 {[%clk 0:00:37.7]} 25... Qf5 {[%clk 0:01:18.9]} 26. Ra1 {[%clk 0:00:32.2]}
26... h5 {[%clk 0:01:17.7]} 27. Bd6 {[%clk 0:00:25.4]} 27... Rf6 {[%clk
0:01:14]} 28. Ra8+ {[%clk 0:00:25.4]} 28... Kh7 {[%clk 0:01:12.9]} 29. Be5
{[%clk 0:00:11.3]} 29... Re6 {[%clk 0:01:08.3]} 30. Ra1 {[%clk 0:00:08.3]} 30...
Nxe5 {[%clk 0:01:05.9]} 31. dxe5 {[%clk 0:00:08.8]} 31... Qxe5 {[%clk
0:01:06.1]} 32. Qxe5 {[%clk 0:00:09.2]} 32... Rxe5 {[%clk 0:01:06.2]} 33. Ra7
{[%clk 0:00:09.8]} 33... Re7 {[%clk 0:01:04.4]} 34. b4 {[%clk 0:00:10.5]} 34...
Kg6 {[%clk 0:01:03.4]} 35. b5 {[%clk 0:00:11.2]} 35... cxb5 {[%clk 0:01:01.3]}
36. Ra5 {[%clk 0:00:11.4]} 36... Rf7 {[%clk 0:00:59.3]} 37. Rxb5 {[%clk
0:00:11.7]} 37... Rd7 {[%clk 0:00:57.8]} 38. Kf2 {[%clk 0:00:12.2]} 38... Kf6
{[%clk 0:00:58.1]} 39. Ke3 {[%clk 0:00:12.7]} 39... Ke6 {[%clk 0:00:57]} 40. Kd4
{[%clk 0:00:12.7]} 40... Rc7 {[%clk 0:00:55.7]} 41. Rb6+ {[%clk 0:00:12]} 41...
Rc6 {[%clk 0:00:52.8]} 42. Rxb7 {[%clk 0:00:12.1]} 42... Rc4+ {[%clk 0:00:52.2]}
43. Kd3 {[%clk 0:00:12.6]} 43... g5 {[%clk 0:00:49.8]} 44. Rh7 {[%clk
0:00:12.6]} 44... h4 {[%clk 0:00:49]} 45. Rh6+ {[%clk 0:00:12.7]} 45... Kf5
{[%clk 0:00:46.6]} 46. Rd6 {[%clk 0:00:13.2]} 46... Ke5 {[%clk 0:00:46.8]} 47.
Rd8 {[%clk 0:00:13.8]} 47... g4 {[%clk 0:00:46.3]} 48. Rg8 {[%clk 0:00:09.6]}
48... gxh3 {[%clk 0:00:44.5]} 49. gxh3 {[%clk 0:00:10.5]} 49... Rf4 {[%clk
0:00:43.2]} 50. Ke3 {[%clk 0:00:09.6]} 50... Rc4 {[%clk 0:00:43]} 51. Rg5+
{[%clk 0:00:08.9]} 51... Kf6 {[%clk 0:00:42.2]} 52. Rxd5 {[%clk 0:00:06.7]}
52... Rxc3+ {[%clk 0:00:42.3]} 53. Rd3 {[%clk 0:00:07]} 53... Rxd3+ {[%clk
0:00:40.8]} 54. Kxd3 {[%clk 0:00:07.9]} 54... Ke5 {[%clk 0:00:38.5]} 55. Ke3
{[%clk 0:00:08.5]} 55... Kf5 {[%clk 0:00:38.8]} 56. Kf3 {[%clk 0:00:09.3]} 56...
Kg5 {[%clk 0:00:38.7]} 57. Ke4 {[%clk 0:00:10]} 57... Kf6 {[%clk 0:00:38.8]} 58.
Kf4 {[%clk 0:00:10.9]} 58... Kg7 {[%clk 0:00:39.4]} 59. Kg4 {[%clk 0:00:11.8]}
59... Kh8 {[%clk 0:00:40.1]} 60. Kxh4 {[%clk 0:00:12.7]} 60... Kg8 {[%clk
0:00:41]} 61. Kg4 {[%clk 0:00:13.6]} 61... Kh8 {[%clk 0:00:41.9]} 62. h4 {[%clk
0:00:14.5]} 62... Kg8 {[%clk 0:00:42.8]} 63. h5 {[%clk 0:00:15.4]} 63... Kh8
{[%clk 0:00:43.7]} 64. h6 {[%clk 0:00:16.3]} 64... Kg8 {[%clk 0:00:44.6]} 65.
h7+ {[%clk 0:00:17.2]} 65... Kh8 {[%clk 0:00:45.3]} 66. Kg5 {[%clk 0:00:17.2]}
66... Kxh7 {[%clk 0:00:45.5]} 1/2-1/2